bitfinex-derivatives/quotes_BTCF0:USTF0_20250704
["timestamp","ask_amount","ask_price","bid_price","bid_amount"]
[1751629202826,1.91491465,109070.0,109060.0,0.5592238]
[1751629211332,1.93825824,109070.0,109060.0,0.5592238]
[1751629218338,1.89242784,109070.0,109060.0,0.80887568]
[1751629218637,1.86222784,109070.0,109060.0,0.80887568]
[1751629218837,0.62275744,109070.0,109060.0,0.80887568]
[1751629219032,0.90711507,109070.0,109060.0,1.84251829]
[1751629219242,0.001,109070.0,109060.0,1.84251829]
[1751629219734,0.1832907,109080.0,109070.0,0.3207618]
[1751629219939,0.1832907,109080.0,109070.0,1.69795734]
[1751629220234,0.43294258,109080.0,109070.0,1.69795734]
[1751629220741,0.43294258,109080.0,109070.0,1.77114807]
[1751629221144,0.43394258,109080.0,109070.0,1.77114807]
[1751629222141,0.43694258,109080.0,109070.0,1.77214807]
[1751629222841,0.1872907,109080.0,109070.0,1.77214807]
[1751629223943,0.43694258,109080.0,109070.0,1.77214807]
[1751629224348,0.43694258,109080.0,109070.0,1.69895734]
[1751629226047,0.43694258,109080.0,109070.0,1.78214807]
[1751629226345,0.43694258,109080.0,109070.0,1.70895734]
[1751629226546,0.43694258,109080.0,109070.0,1.45895734]
[1751629227052,0.43694258,109080.0,109070.0,1.44895734]
[1751629227548,0.43694258,109080.0,109070.0,1.71895734]
[1751629227747,0.43694258,109080.0,109070.0,1.46895734]
[1751629227947,0.43694258,109080.0,109070.0,1.54214807]
[1751629228248,0.43694258,109080.0,109070.0,1.76214807]
[1751629228443,0.43694258,109080.0,109070.0,1.68895734]
[1751629230149,0.43694258,109080.0,109070.0,1.44895734]
[1751629230349,0.1872907,109080.0,109070.0,1.35895734]
[1751629230549,0.43694258,109080.0,109070.0,1.67895734]
[1751629231151,0.43694258,109080.0,109070.0,1.10930546]
[1751629231355,0.43694258,109080.0,109070.0,1.46895734]
[1751629232949,0.1872907,109080.0,109070.0,1.35895734]
[1751629233146,0.43694258,109080.0,109070.0,1.74015734]
[1751629234050,0.1872907,109080.0,109070.0,1.74015734]
[1751629234652,0.004,109080.0,109070.0,2.82168922]
[1751629234856,0.55635228,109100.0,109090.0,0.1832733]
[1751629235061,0.86635228,109100.0,109090.0,0.70292518]
[1751629235356,0.86635228,109100.0,109090.0,0.76502518]
[1751629235658,0.86635228,109100.0,109090.0,0.79782518]
[1751629236250,0.87235228,109100.0,109090.0,0.79882518]
[1751629236651,0.87535228,109100.0,109090.0,0.79882518]
[1751629237352,0.65535228,109100.0,109090.0,0.79882518]
[1751629237554,0.65535228,109100.0,109090.0,0.80800977]
[1751629237851,0.56535228,109100.0,109090.0,0.80800977]
[1751629238041,0.81500416,109100.0,109090.0,0.55835789]
[1751629238550,0.84650416,109100.0,109090.0,0.55835789]
[1751629240446,0.84650416,109100.0,109090.0,0.52555789]
[1751629245556,0.86981935,109100.0,109090.0,0.52555789]
[1751629248355,0.86981935,109100.0,109090.0,0.49465789]
[1751629248558,0.90071935,109100.0,109090.0,0.49465789]
[1751629249563,1.24071935,109100.0,109090.0,0.4542733]
[1751629249960,1.60151935,109100.0,109090.0,0.4542733]
[1751629251349,1.60146627,109100.0,109090.0,0.4542733]
[1751629252553,1.10216251,109100.0,109090.0,0.4542733]
[1751629252766,1.60146627,109100.0,109090.0,0.4542733]
[1751629253161,1.24066627,109100.0,109090.0,0.4542733]
[1751629254862,0.90066627,109100.0,109090.0,0.4542733]
[1751629263066,1.24066627,109100.0,109090.0,0.4542733]
[1751629263470,1.24066627,109100.0,109090.0,0.1842733]
[1751629263666,1.24066627,109100.0,109090.0,0.2642733]
[1751629279289,1.24066627,109100.0,109090.0,0.3296733]
[1751629279788,0.90066627,109100.0,109090.0,0.5496733]
[1751629291189,0.90144275,109100.0,109090.0,0.5496733]
[1751629295702,0.40213899,109100.0,109090.0,0.5496733]
[1751629295909,0.90144275,109100.0,109090.0,0.5496733]
[1751629299003,0.90144275,109100.0,109090.0,0.56874217]
[1751629300801,0.90044275,109100.0,109090.0,0.56874217]
[1751629301301,0.89444275,109100.0,109090.0,0.56874217]
[1751629301506,0.89744275,109100.0,109090.0,0.56154217]
[1751629305306,0.8972923,109100.0,109090.0,0.56154217]
[1751629312212,1.7279323,109100.0,109090.0,0.56154217]
[1751629316016,0.8972923,109100.0,109090.0,0.56154217]
[1751629316219,1.7278923,109100.0,109090.0,0.56154217]
[1751629316614,0.8972923,109100.0,109090.0,0.56154217]
[1751629316814,1.7278923,109100.0,109090.0,0.56154217]
[1751629319318,1.72727712,109100.0,109090.0,0.56154217]
[1751629321719,0.39737336,109100.0,109090.0,0.56154217]
[1751629322021,1.72727712,109100.0,109090.0,0.56154217]
[1751629324022,1.72727721,109100.0,109090.0,0.56154217]
[1751629330225,1.22797345,109100.0,109090.0,0.56154217]
[1751629330420,1.69637721,109100.0,109090.0,0.56154217]
[1751629331126,0.86577721,109100.0,109090.0,0.56154217]
[1751629331333,1.69637721,109100.0,109090.0,0.56154217]
[1751629335830,0.86577721,109100.0,109090.0,0.56154217]
[1751629336230,2.03633721,109100.0,109090.0,0.56154217]
[1751629336729,2.06673721,109100.0,109090.0,0.56154217]
[1751629337230,1.23617721,109100.0,109090.0,0.56154217]
[1751629337531,2.06673721,109100.0,109090.0,0.56154217]
[1751629338930,1.23617721,109100.0,109090.0,0.56154217]
[1751629339230,2.06673721,109100.0,109090.0,0.56154217]
[1751629340419,1.23617721,109100.0,109090.0,0.56154217]
[1751629340826,2.06673721,109100.0,109090.0,0.56154217]
[1751629342234,1.23617721,109100.0,109090.0,0.56154217]
[1751629342434,2.06673721,109100.0,109090.0,0.56154217]
[1751629343333,2.0665334,109100.0,109090.0,0.56154217]
[1751629343634,1.2359734,109100.0,109090.0,0.56154217]
[1751629343827,2.0665334,109100.0,109090.0,0.56154217]
[1751629344533,1.2359734,109100.0,109090.0,0.56154217]
[1751629344735,2.0665334,109100.0,109090.0,0.56154217]
[1751629345529,1.2359734,109100.0,109090.0,0.56154217]
[1751629345834,2.0665334,109100.0,109090.0,0.56154217]
[1751629346237,1.2359734,109100.0,109090.0,0.56154217]
[1751629346433,1.7265334,109100.0,109090.0,0.56154217]
[1751629347041,0.8959734,109100.0,109090.0,0.56154217]
[1751629347341,1.7265334,109100.0,109090.0,0.56154217]
[1751629348938,0.8959734,109100.0,109090.0,0.56154217]
[1751629349439,1.7265334,109100.0,109090.0,0.56154217]
[1751629350041,0.39666964,109100.0,109090.0,0.56154217]
[1751629350236,0.8655734,109100.0,109090.0,0.81119405]
[1751629350539,1.04189914,109100.0,109090.0,1.52199405]
[1751629350738,1.04189914,109100.0,109090.0,1.55359405]
[1751629350934,0.1832536,109110.0,109100.0,0.1832564]
[1751629351131,0.20631878,109110.0,109100.0,1.79036016]
[1751629351333,1.03687878,109110.0,109100.0,1.79036016]
[1751629351534,1.26346548,109110.0,109100.0,1.54070828]
[1751629352041,1.0138136,109110.0,109100.0,1.54070828]
[1751629352237,1.26346548,109110.0,109100.0,1.54070828]
[1751629352444,1.26346548,109110.0,109100.0,1.19070828]
[1751629352638,1.26846548,109110.0,109100.0,1.24170828]
[1751629352837,1.27046548,109110.0,109100.0,1.24170828]
[1751629353037,1.29351011,109110.0,109100.0,1.24170828]
[1751629353541,1.27046548,109110.0,109100.0,1.24170828]
[1751629354242,1.27046548,109110.0,109100.0,0.9920564]
[1751629354541,1.27046548,109110.0,109100.0,1.24170828]
[1751629355945,1.27054548,109110.0,109100.0,1.24170828]
[1751629360147,1.27054548,109110.0,109100.0,0.88090828]
[1751629360448,1.27054548,109110.0,109100.0,0.5812564]
[1751629361650,1.30184548,109110.0,109100.0,0.5812564]
[1751629362148,2.22229736,109110.0,109100.0,0.301]
[1751629362353,2.30921973,109110.0,109100.0,0.1842564]
[1751629362749,2.28619736,109110.0,109100.0,0.1842564]
[1751629363253,2.28619736,109110.0,109100.0,0.2542564]
[1751629363748,2.28619736,109110.0,109100.0,0.4742564]
[1751629365153,2.30922457,109110.0,109100.0,0.4742564]
[1751629368564,1.99922457,109110.0,109100.0,0.1842564]
[1751629370063,1.99922457,109110.0,109100.0,0.001]
[1751629370265,2.10922457,109110.0,109100.0,0.001]
[1751629379458,2.10922457,109110.0,109100.0,0.261]
[1751629380470,2.10922457,109110.0,109100.0,0.4442566]
[1751629380670,2.10880707,109110.0,109100.0,0.4442566]
[1751629381574,2.10880707,109110.0,109100.0,0.261]
[1751629382468,1.27816707,109110.0,109100.0,0.261]
[1751629382669,2.10864707,109110.0,109100.0,0.261]
[1751629382867,1.99864707,109110.0,109100.0,0.4442566]
[1751629383068,2.36864707,109110.0,109100.0,0.4442566]
[1751629383369,2.36864707,109110.0,109100.0,0.261]
[1751629383569,2.36864705,109110.0,109100.0,0.4442566]
[1751629385380,2.36864705,109110.0,109100.0,0.261]
[1751629386477,2.00784705,109110.0,109100.0,0.261]
[1751629386678,2.36864705,109110.0,109100.0,0.261]
[1751629387072,2.36864705,109110.0,109100.0,0.31572929]
[1751629390078,2.36864705,109110.0,109100.0,0.261]
[1751629390373,2.36864705,109110.0,109100.0,0.051]
[1751629392076,0.85461517,109110.0,109100.0,0.001]
[1751629392280,2.05509517,109110.0,109100.0,0.3248]
[1751629392479,2.05509517,109110.0,109100.0,0.3574]
[1751629394983,2.05509517,109110.0,109100.0,0.5406566]
[1751629396380,2.05509517,109110.0,109100.0,0.59538589]
[1751629396581,1.68509517,109110.0,109100.0,0.59538589]
[1751629396782,1.83509517,109110.0,109100.0,0.59538589]
[1751629398185,1.83509517,109110.0,109100.0,0.5406566]
[1751629400180,1.83509517,109110.0,109100.0,0.59538589]
[1751629402291,1.58544329,109110.0,109100.0,0.59538589]
[1751629402484,1.83509517,109110.0,109100.0,0.59538589]
[1751629403289,1.47429517,109110.0,109100.0,0.59538589]
[1751629403491,1.83509517,109110.0,109100.0,0.59538589]
[1751629404088,1.83509517,109110.0,109100.0,0.41212929]
[1751629405099,1.83509517,109110.0,109100.0,0.59538589]
[1751629405286,1.83509517,109110.0,109100.0,0.56278589]
[1751629405486,1.89719517,109110.0,109100.0,0.56278589]
[1751629407094,1.89719824,109110.0,109100.0,0.56278589]
[1751629410295,1.64754636,109110.0,109100.0,0.56278589]
[1751629410497,1.89719824,109110.0,109100.0,0.56278589]
[1751629411696,1.06671824,109110.0,109100.0,0.81243777]
[1751629411896,1.86711824,109110.0,109100.0,0.56278589]
[1751629412098,1.86711824,109110.0,109100.0,0.59298589]
[1751629416299,1.50631824,109110.0,109100.0,0.59298589]
[1751629416499,1.86711824,109110.0,109100.0,0.59298589]
[1751629419399,1.96677012,109110.0,109100.0,0.31572929]
[1751629419608,2.36767012,109110.0,109100.0,0.49898589]
[1751629419905,2.36767012,109110.0,109100.0,0.30898589]
[1751629420306,2.36767012,109110.0,109100.0,0.12572929]
[1751629420500,2.36767012,109110.0,109100.0,0.30898589]
[1751629421306,2.36767012,109110.0,109100.0,0.12572929]
[1751629422208,2.36767012,109110.0,109100.0,0.30898589]
[1751629424508,2.36767012,109110.0,109100.0,0.12572929]
[1751629425510,2.36767012,109110.0,109100.0,0.30898599]
[1751629427112,2.36767012,109110.0,109100.0,0.12572929]
[1751629427512,2.36767012,109110.0,109100.0,0.071]
[1751629431419,2.00687012,109110.0,109100.0,0.071]
[1751629431619,2.36767012,109110.0,109100.0,0.071]
[1751629433223,2.00687012,109110.0,109100.0,0.071]
[1751629433521,2.36767012,109110.0,109100.0,0.071]
[1751629434320,2.00687012,109110.0,109100.0,0.071]
[1751629434524,2.36767012,109110.0,109100.0,0.071]
[1751629437917,2.36767012,109110.0,109100.0,0.271]
[1751629440418,2.00687012,109110.0,109100.0,0.271]
[1751629440624,2.36767012,109110.0,109100.0,0.271]
[1751629441227,1.53727012,109110.0,109100.0,0.271]
[1751629441427,2.36751012,109110.0,109100.0,0.271]
[1751629442430,1.53727012,109110.0,109100.0,0.271]
[1751629442732,2.36751012,109110.0,109100.0,0.271]
[1751629443234,1.53727012,109110.0,109100.0,0.271]
[1751629443432,2.36751012,109110.0,109100.0,0.271]
[1751629445033,1.86820636,109110.0,109100.0,0.271]
[1751629445237,2.36751012,109110.0,109100.0,0.271]
[1751629449536,2.36751012,109110.0,109100.0,0.081]
[1751629450838,2.00671012,109110.0,109100.0,0.081]
[1751629451038,2.36751012,109110.0,109100.0,0.081]
[1751629452442,2.36851012,109110.0,109100.0,0.081]
[1751629458437,2.00771012,109110.0,109100.0,0.081]
[1751629458643,2.36851012,109110.0,109100.0,0.081]
[1751629461142,2.36859556,109110.0,109100.0,0.081]
[1751629468252,2.36859572,109110.0,109100.0,0.081]
[1751629471150,2.36859572,109110.0,109100.0,0.001]
[1751629471357,2.36859572,109110.0,109100.0,0.311]
[1751629479364,2.36859572,109110.0,109100.0,0.071]
[1751629481368,2.34589736,109110.0,109100.0,0.071]
[1751629481560,2.36859603,109110.0,109100.0,0.071]
[1751629485669,2.36859603,109110.0,109100.0,0.281]
[1751629487269,2.3686001,109110.0,109100.0,0.281]
[1751629489668,2.36861722,109110.0,109100.0,0.281]
[1751629493673,2.36861722,109110.0,109100.0,0.091]
[1751629497471,2.00781722,109110.0,109100.0,0.091]
[1751629497664,2.36861722,109110.0,109100.0,0.091]
[1751629501078,2.36861722,109110.0,109100.0,0.311]
[1751629507991,1.53837722,109110.0,109100.0,0.311]
[1751629508185,2.36817722,109110.0,109100.0,0.311]
[1751629508589,2.36817729,109110.0,109100.0,0.311]
[1751629508792,1.80422541,109110.0,109100.0,0.4942567]
[1751629508983,1.80422541,109110.0,109100.0,0.4058]
[1751629512080,2.08427729,109110.0,109100.0,0.4058]
[1751629512284,2.08427729,109110.0,109100.0,0.3757]
[1751629512490,2.11577729,109110.0,109100.0,0.3757]
[1751629512686,2.14837729,109110.0,109100.0,0.3757]
[1751629524998,1.89872541,109110.0,109100.0,0.3757]
[1751629530500,1.53792541,109110.0,109100.0,0.3757]
[1751629530701,1.89872541,109110.0,109100.0,0.3757]
[1751629537305,2.14837729,109110.0,109100.0,0.3757]
[1751629538305,1.78757729,109110.0,109100.0,0.3757]
[1751629538508,2.31837729,109110.0,109100.0,0.3757]
[1751629539202,2.31837729,109110.0,109100.0,0.0657]
[1751629539902,2.31837729,109110.0,109100.0,0.1457]
[1751629543008,2.06872541,109110.0,109100.0,0.1457]
[1751629544712,2.06872541,109110.0,109100.0,0.3657]
[1751629546413,1.70792541,109110.0,109100.0,0.3657]
[1751629546614,2.06872541,109110.0,109100.0,0.3657]
[1751629547512,2.06872541,109110.0,109100.0,0.42058888]
[1751629548313,2.31837729,109110.0,109100.0,0.42058888]
[1751629552319,1.95757729,109110.0,109100.0,0.42058888]
[1751629552518,2.31837729,109110.0,109100.0,0.42058888]
[1751629553019,2.06872541,109110.0,109100.0,0.42058888]
[1751629555521,1.81907353,109110.0,109100.0,0.42058888]
[1751629555722,2.06872541,109110.0,109100.0,0.42058888]
[1751629556116,1.81907353,109110.0,109100.0,0.42058888]
[1751629556320,1.81907353,109110.0,109100.0,0.85349736]
[1751629556321,0.89477353,109110.0,109100.0,0.85349736]
[1751629556523,1.14442541,109110.0,109100.0,0.88589736]
[1751629556727,1.77394541,109110.0,109100.0,0.88589736]
[1751629557622,0.33397353,109110.0,109100.0,1.83634924]
[1751629557822,1.16349353,109110.0,109100.0,1.83634924]
[1751629558025,1.41314541,109110.0,109100.0,1.24669736]
[1751629558730,1.41314541,109110.0,109100.0,0.99704548]
[1751629559024,1.41314541,109110.0,109100.0,0.45298888]
[1751629559227,1.65314541,109110.0,109100.0,0.63624558]
[1751629559425,1.99394541,109110.0,109100.0,0.63624558]
[1751629559821,2.24359729,109110.0,109100.0,0.63624558]
[1751629560030,2.36769729,109110.0,109100.0,0.38588888]
[1751629560914,2.36769729,109110.0,109100.0,0.331]
[1751629567240,2.36758557,109110.0,109100.0,0.331]
[1751629568132,2.36758557,109110.0,109100.0,0.001]
[1751629570036,0.1832567,109100.0,109090.0,0.05488888]
[1751629570222,1.74902055,109100.0,109090.0,0.29]
[1751629571230,1.75102055,109100.0,109090.0,0.29]
[1751629571432,1.75202055,109100.0,109090.0,0.291]
[1751629572537,1.75302055,109100.0,109090.0,0.291]
[1751629573631,1.75602055,109100.0,109090.0,0.291]
[1751629578750,1.76532885,109100.0,109090.0,0.291]
[1751629585654,1.76532885,109100.0,109090.0,0.001]
[1751629590855,1.76532885,109100.0,109090.0,0.271]
[1751629601265,1.76532885,109100.0,109090.0,0.262]
[1751629602171,0.1832735,109090.0,109080.0,0.4]
[1751629602368,2.73856265,109090.0,109080.0,0.29]
[1751629602670,2.53473277,109090.0,109080.0,0.29]
[1751629603470,2.53673277,109090.0,109080.0,0.29]
[1751629605166,2.53973277,109090.0,109080.0,0.291]
[1751629610375,2.53973277,109090.0,109080.0,0.001]
[1751629612473,2.90053277,109090.0,109080.0,0.001]
[1751629616076,2.90053277,109090.0,109080.0,0.291]
[1751629617581,2.87792456,109090.0,109080.0,0.291]
[1751629621182,2.90019964,109090.0,109080.0,0.291]
[1751629628881,2.90019964,109090.0,109080.0,0.001]
[1751629632093,3.13151964,109090.0,109080.0,0.001]
[1751629646012,3.13151964,109090.0,109080.0,0.301]
[1751629654012,3.13151964,109090.0,109080.0,0.001]
[1751629659722,3.13151964,109090.0,109080.0,0.291]
[1751629667728,3.13151964,109090.0,109080.0,0.001]
[1751629676027,3.13151964,109090.0,109080.0,0.271]
[1751629679032,2.04033964,109090.0,109080.0,0.271]
[1751629679230,2.53440776,109090.0,109080.0,0.376]
[1751629679835,2.53440776,109090.0,109080.0,0.43090548]
[1751629680339,2.53440776,109090.0,109080.0,0.376]
[1751629680636,2.78405964,109090.0,109080.0,0.43090548]
[1751629682338,2.78405964,109090.0,109080.0,0.376]
[1751629684940,2.42325964,109090.0,109080.0,0.376]
[1751629685539,2.06245964,109090.0,109080.0,0.376]
[1751629685739,2.42325964,109090.0,109080.0,0.376]
[1751629685936,2.06245964,109090.0,109080.0,0.376]
[1751629686143,2.42325964,109090.0,109080.0,0.376]
[1751629687942,2.42325964,109090.0,109080.0,0.096]
[1751629688142,2.45355964,109090.0,109080.0,0.156]
[1751629697550,2.48595964,109090.0,109080.0,0.156]
[1751629700354,2.46368456,109090.0,109080.0,0.156]
[1751629700552,2.48591308,109090.0,109080.0,0.156]
[1751629702352,2.48591308,109090.0,109080.0,0.1229]
[1751629702952,2.48591308,109090.0,109080.0,0.14032888]
[1751629703253,2.12511308,109090.0,109080.0,0.14032888]
[1751629703456,2.48591308,109090.0,109080.0,0.14032888]
[1751629704955,2.48591308,109090.0,109080.0,0.35032888]
[1751629708356,2.48591308,109090.0,109080.0,0.40523436]
[1751629708557,2.48591308,109090.0,109080.0,0.35032888]
[1751629709556,2.48591806,109090.0,109080.0,0.35032888]
[1751629710061,2.51711806,109090.0,109080.0,0.35032888]
[1751629712365,2.0178143,109090.0,109080.0,0.35032888]
[1751629712665,2.51711806,109090.0,109080.0,0.35032888]
[1751629715671,2.48591806,109090.0,109080.0,0.35032888]
[1751629715865,2.45351806,109090.0,109080.0,0.38302888]
[1751629716768,2.20386618,109090.0,109080.0,0.38302888]
[1751629718561,1.37454618,109090.0,109080.0,0.38302888]
[1751629718758,2.20378618,109090.0,109080.0,0.38302888]
[1751629720172,2.20378618,109090.0,109080.0,0.43793436]
[1751629724778,2.20378618,109090.0,109080.0,0.45226214]
[1751629726177,1.1248943,109090.0,109080.0,0.63555224]
[1751629726365,2.20374618,109090.0,109080.0,0.63555224]
[1751629726566,2.20374618,109090.0,109080.0,0.58064676]
[1751629734287,2.20374618,109090.0,109080.0,0.58970965]
[1751629735393,2.20374618,109090.0,109080.0,0.58064676]
[1751629736487,1.37454618,109090.0,109080.0,0.58064676]
[1751629736689,2.12758418,109090.0,109080.0,0.82029864]
[1751629738387,2.12758418,109090.0,109080.0,0.57064676]
[1751629738690,2.12758418,109090.0,109080.0,0.82930548]
[1751629738892,1.5171323,109090.0,109080.0,1.19010548]
[1751629739092,1.76678418,109090.0,109080.0,1.24501096]
[1751629740595,0.93762418,109090.0,109080.0,1.24501096]
[1751629740786,1.76678418,109090.0,109080.0,1.24501096]
[1751629741990,0.93762418,109090.0,109080.0,1.24501096]
[1751629742190,1.76674418,109090.0,109080.0,1.24501096]
[1751629742391,0.93762418,109090.0,109080.0,1.24500095]
[1751629742592,1.76674418,109090.0,109080.0,1.24500095]
[1751629744392,1.76674418,109090.0,109080.0,1.24493935]
[1751629744798,1.48674418,109090.0,109080.0,1.24493935]
[1751629744997,1.42674418,109090.0,109080.0,1.24493935]
[1751629748999,1.42674418,109090.0,109080.0,1.23068318]
[1751629750300,1.40451068,109090.0,109080.0,1.23068318]
[1751629750699,1.40451068,109090.0,109080.0,0.9810313]
[1751629752101,1.43671068,109090.0,109080.0,0.9810313]
[1751629753600,1.43671068,109090.0,109080.0,1.23068318]
[1751629754202,1.43671068,109090.0,109080.0,0.86988318]
[1751629754397,1.45899717,109090.0,109080.0,0.86988318]
[1751629755902,1.45899717,109090.0,109080.0,0.8149777]
[1751629758106,1.49059717,109090.0,109080.0,0.8149777]
[1751629758506,1.49059717,109090.0,109080.0,0.56532582]
[1751629758710,1.49059717,109090.0,109080.0,0.8149777]
[1751629759411,1.49059717,109090.0,109080.0,0.53262582]
[1751629759607,1.49059717,109090.0,109080.0,0.7822777]
[1751629766109,1.49059717,109090.0,109080.0,0.53262582]
[1751629766312,1.49059717,109090.0,109080.0,0.7822777]
[1751629766911,1.49059717,109090.0,109080.0,0.83718318]
[1751629771114,1.24094529,109090.0,109080.0,0.83718318]
[1751629771312,1.49059717,109090.0,109080.0,0.83718318]
[1751629774212,1.49059717,109090.0,109080.0,0.5875313]
[1751629774413,1.49059717,109090.0,109080.0,0.83718318]
[1751629775718,1.24094529,109090.0,109080.0,0.83718318]
[1751629775921,1.49059717,109090.0,109080.0,0.83718318]
[1751629776518,1.49059717,109090.0,109080.0,0.7822777]
[1751629778821,1.49059717,109090.0,109080.0,0.53262582]
[1751629779016,1.24094529,109090.0,109080.0,0.7822777]
[1751629779320,1.49059717,109090.0,109080.0,0.7822777]
[1751629779724,1.49059717,109090.0,109080.0,0.53262582]
[1751629779915,1.49059717,109090.0,109080.0,0.7822777]
[1751629780727,1.49059717,109090.0,109080.0,0.83727078]
[1751629781122,1.49059717,109090.0,109080.0,0.7822777]
[1751629781625,1.49059717,109090.0,109080.0,0.83727203]
[1751629782724,1.49059717,109090.0,109080.0,0.87007203]
[1751629784727,1.49050909,109090.0,109080.0,0.87007203]
[1751629788830,1.49052032,109090.0,109080.0,0.87007203]
[1751629792030,1.49052027,109090.0,109080.0,0.87007203]
[1751629796032,1.49052027,109090.0,109080.0,0.8150777]
[1751629799124,2.18132027,109090.0,109080.0,0.46171908]
[1751629799431,2.68062403,109090.0,109080.0,0.261]
[1751629799625,2.43097215,109090.0,109080.0,0.271]
[1751629799825,2.46147215,109090.0,109080.0,0.271]
[1751629800832,2.46147215,109090.0,109080.0,0.001]
[1751629801030,2.71112403,109090.0,109080.0,0.001]
[1751629801234,2.46147215,109090.0,109080.0,0.001]
[1751629802035,2.46147215,109090.0,109080.0,0.311]
[1751629803736,2.81112403,109090.0,109080.0,0.001]
[1751629803935,0.183307,109070.0,109060.0,0.05500508]
[1751629804130,0.1833238,109060.0,109050.0,0.23834448]
[1751629804330,1.51712756,109060.0,109050.0,0.25259675]
[1751629804538,1.51712756,109060.0,109050.0,0.33259675]
[1751629805237,1.51712756,109060.0,109050.0,0.33259075]
[1751629805732,1.51712756,109060.0,109050.0,0.45758567]
[1751629805938,1.13712756,109060.0,109050.0,0.45758567]
[1751629806133,1.47712756,109060.0,109050.0,0.45758567]
[1751629806837,1.50027219,109060.0,109050.0,0.46058567]
[1751629807235,1.47812756,109060.0,109050.0,0.46058567]
[1751629807938,1.50026586,109060.0,109050.0,0.46058567]
[1751629808339,1.47812756,109060.0,109050.0,0.46058567]
[1751629808539,1.50026067,109060.0,109050.0,0.46058567]
[1751629808840,1.50026067,109060.0,109050.0,0.27724627]
[1751629809034,1.50026067,109060.0,109050.0,0.46058687]
[1751629809442,1.47812756,109060.0,109050.0,0.46058687]
[1751629809941,1.47812756,109060.0,109050.0,0.27824627]
[1751629810835,1.47812756,109060.0,109050.0,0.46158687]
[1751629811040,1.47812756,109060.0,109050.0,0.27824627]
[1751629811343,1.48725141,109060.0,109050.0,0.27824627]
[1751629813443,1.47812756,109060.0,109050.0,0.27824627]
[1751629813950,1.47812756,109060.0,109050.0,0.27833086]
[1751629814447,1.47812756,109060.0,109050.0,0.46167146]
[1751629817744,1.96764756,109060.0,109050.0,0.46167146]
[1751629818141,2.29764756,109060.0,109050.0,0.46167146]
[1751629823344,2.29764756,109060.0,109050.0,0.4473406]
[1751629823548,2.29764756,109060.0,109050.0,0.46167146]
[1751629826258,2.29764756,109060.0,109050.0,0.51667654]
[1751629829466,2.29764756,109060.0,109050.0,0.54687654]
[1751629830364,2.29764756,109060.0,109050.0,0.42687654]
[1751629830558,2.29764756,109060.0,109050.0,0.24353594]
[1751629831166,2.29764756,109060.0,109050.0,0.42687664]
[1751629832261,2.29764756,109060.0,109050.0,0.39667664]
[1751629832564,2.29764756,109060.0,109050.0,0.38234578]
[1751629832756,2.29764756,109060.0,109050.0,0.39667674]
[1751629833364,2.31978324,109060.0,109050.0,0.34167166]
[1751629834567,1.98978324,109060.0,109050.0,0.34167166]
[1751629836680,2.29978324,109060.0,109050.0,0.34167166]
[1751629837072,1.16026324,109060.0,109050.0,0.3273407]
[1751629837277,1.67801136,109060.0,109050.0,0.65019988]
[1751629837482,1.67801136,109060.0,109050.0,0.74699988]
[1751629839980,1.42835948,109060.0,109050.0,0.74699988]
[1751629840171,1.67801136,109060.0,109050.0,0.74699988]
[1751629840373,0.59815948,109060.0,109050.0,0.76133072]
[1751629840578,1.64771136,109060.0,109050.0,0.76133072]
[1751629843381,1.28691136,109060.0,109050.0,0.76133072]
[1751629843584,1.64771136,109060.0,109050.0,0.76133072]
[1751629844986,1.64771136,109060.0,109050.0,0.74699988]
[1751629847985,1.64671136,109060.0,109050.0,0.74399988]
[1751629848188,1.64771136,109060.0,109050.0,0.74499988]
[1751629848680,1.64771136,109060.0,109050.0,0.72681975]
[1751629849579,1.67971136,109060.0,109050.0,0.72681975]
[1751629858391,1.31891136,109060.0,109050.0,0.72681975]
[1751629858591,1.67971136,109060.0,109050.0,0.72681975]
[1751629859892,1.67971136,109060.0,109050.0,0.74499988]
[1751629860793,1.92936324,109060.0,109050.0,0.495348]
[1751629861294,1.67971136,109060.0,109050.0,0.495348]
[1751629861593,1.92936324,109060.0,109050.0,0.495348]
[1751629861794,1.67971136,109060.0,109050.0,0.495348]
[1751629863196,1.70981136,109060.0,109050.0,0.495348]
[1751629864195,1.70981136,109060.0,109050.0,0.74499988]
[1751629866199,1.95946324,109060.0,109050.0,0.74499988]
[1751629869200,1.95946324,109060.0,109050.0,0.495348]
[1751629869402,1.95946324,109060.0,109050.0,0.462448]
[1751629869592,1.99246324,109060.0,109050.0,0.71209988]
[1751629870995,1.99246324,109060.0,109050.0,0.462448]
[1751629873904,1.99246324,109060.0,109050.0,0.71209988]
[1751629874909,2.02246324,109060.0,109050.0,0.71209988]
[1751629875705,2.02246324,109060.0,109050.0,0.462448]
[1751629875901,2.02246324,109060.0,109050.0,0.2152073]
[1751629876203,2.37246324,109060.0,109050.0,0.2152073]
[1751629876809,2.09246324,109060.0,109050.0,0.2152073]
[1751629878104,2.09246324,109060.0,109050.0,0.142]
[1751629878404,2.09246324,109060.0,109050.0,0.2152073]
[1751629879005,2.10246324,109060.0,109050.0,0.2152073]
[1751629880103,2.32246324,109060.0,109050.0,0.2152073]
[1751629883400,1.52315948,109060.0,109050.0,0.398548]
[1751629883601,2.02246324,109060.0,109050.0,0.398548]
[1751629884009,2.02246324,109060.0,109050.0,0.2152073]
[1751629884904,1.99246324,109060.0,109050.0,0.2152073]
[1751629885218,2.37246324,109060.0,109050.0,0.2152073]
[1751629886502,2.37246324,109060.0,109050.0,0.19703131]
[1751629893215,2.37246324,109060.0,109050.0,0.142]
[1751629894816,2.37246324,109060.0,109050.0,0.002]
[1751629895010,2.37246324,109060.0,109050.0,0.082]
[1751629895217,2.62211512,109060.0,109050.0,0.002]
[1751629895618,2.62211512,109060.0,109050.0,0.312]
[1751629895817,2.37246324,109060.0,109050.0,0.312]
[1751629902131,2.62211512,109060.0,109050.0,0.312]
[1751629903723,2.62211512,109060.0,109050.0,0.002]
[1751629907519,2.62211512,109060.0,109050.0,0.292]
[1751629926138,2.62207474,109060.0,109050.0,0.292]
[1751629926537,2.62207474,109060.0,109050.0,0.002]
[1751629926840,2.72207474,109060.0,109050.0,0.002]
[1751629929637,0.1833406,109050.0,109040.0,0.0611]
[1751629929941,1.47723966,109050.0,109040.0,0.3911]
[1751629931235,1.47823966,109050.0,109040.0,0.3951]
[1751629931642,1.47823966,109050.0,109040.0,0.3961]
[1751629932938,1.75939154,109050.0,109040.0,0.335]
[1751629933236,1.54113966,109050.0,109040.0,0.335]
[1751629933645,1.54113966,109050.0,109040.0,0.025]
[1751629933944,1.84576209,109050.0,109040.0,0.025]
[1751629934131,1.59611021,109050.0,109040.0,0.025]
[1751629935146,1.59611021,109050.0,109040.0,0.03924691]